Cogmind - Beta 13 @@@ ROGUE MODE // 2024.06.26 @ 17:48:30 Player: Clockwork Slayer 55 Result: Destroyed by G-47 Trooper with Particle Gun Performance ------------- Evolutions (2) 1000 Regions Visited (4) 800 Robots Destroyed (42) 210 Value Destroyed (1249) 1249 Prototype IDs (2) 40 Alien Tech Used (0) 0 Bonus (-176) -176 TOTAL SCORE: 3123 Bonus ------- Follower Combat Kills 35 Friendly Fire -211 Cogmind --------- Core Integrity 0/550 Matter 250/450 Energy 99/100 System Corruption 1% Temperature Cool (9) Movement Core (700) Ox13 Location -8/Materials Parts ------- > --- POWER (2) -------- (None) > --- PROPULSION (3) --- (None) > --- UTILITY (3) ------ High-capacity Storage Unit Compact Matter Pod Advanced Visual Processing Unit > --- WEAPON (3) ------- (None) > --- INVENTORY (20) --- Light Treads Aluminum Leg Small Storage Unit Improved Terrain Scanner Seismic Detector Peak State ------------ > --- POWER ------------ Nuclear Core Improved Deuterium Engine > --- PROPULSION ------- Aluminum Leg Armored Huge Wheel > --- UTILITY ---------- Improved Heat Sink High-capacity Storage Unit System Shield > --- WEAPON ----------- Spread Laser EM Pulse Cannon Rocket Launcher > --- INVENTORY -------- Ion Engine Light Ion Engine Light Nuclear Core Light Treads Aluminum Leg Wheel Small Storage Unit Compact Matter Pod Improved Terrain Scanner Seismic Detector Small Laser Small Laser Particle Gun Assault Rifle Assault Rifle Light Assault Rifle [Rating: 32] Favorites ----------- Power Nuclear Core Engine Ion Engine Power Core Nuclear Core Propulsion Aluminum Leg Treads Light Treads Leg Aluminum Leg Wheel Armored Huge Wheel Flight Unit Flight Unit Utility High-capacity Storage Unit Device Improved Terrain Scanner Storage High-capacity Storage Unit Processor Advanced Visual Processing Unit Hackware System Shield Weapon Spread Laser Energy Gun Spread Laser Energy Cannon EM Pulse Cannon Ballistic Gun Assault Rifle Launcher Rocket Launcher Build | -11 -10 -9 -9 -8 ------- Run | Yrd Mat Mat Min Mat Slots Evolved 4 | . . 2 . 2 Power 1 | . . . . 1 Propulsion 1 | . . 1 . . Utility 1 | . . . . 1 Weapon 1 | . . 1 . . Parts Attached 61 | 9 13 9 1 29 Power 13 | 1 1 1 . 10 Engine 8 | 1 1 . . 6 Core 5 | . . 1 . 4 Reactor . | . . . . . Propulsion 18 | 4 9 1 . 4 Treads 3 | 2 1 . . . Leg 7 | 1 4 1 . 1 Wheel 7 | 1 3 . . 3 Hover . | . . . . . Flight 1 | . 1 . . . Utility 10 | 1 1 2 . 6 Device 4 | . 1 1 . 2 Storage 4 | 1 . 1 . 2 Processor 1 | . . . . 1 Hackware 1 | . . . . 1 Protection . | . . . . . Artifact . | . . . . . Weapon 20 | 3 2 5 1 9 Energy Gun 10 | 1 2 2 . 5 Energy Cannon 1 | . . 1 . . Ballistic Gun 8 | 2 . 2 . 4 Ballistic Cannon . | . . . . . Launcher 1 | . . . 1 . Special Weapon . | . . . . . Impact Weapon . | . . . . . Slashing Weapon . | . . . . . Piercing Weapon . | . . . . . Special Melee Weapon . | . . . . . Unidentified Prototypes . | . . . . . Parts Lost 27 | . 3 . . 24 Power 7 | . 1 . . 6 Propulsion 6 | . 1 . . 5 Utility 2 | . . . . 2 Weapon 12 | . 1 . . 11 Highest Loss Streak 12 | . 2 . . 12 To Critical Strikes . | . . . . . Average Slot Usage (%) 94 | . 90 96 100 89 Engine 4 | . 11 . . 7 Core 9 | . . 10 11 9 Treads 1 | . 10 . . . Leg 22 | . 10 30 33 15 Wheel 2 | . 3 . . 5 Device 9 | . 12 11 11 6 Storage 12 | . 14 11 11 13 Hackware 2 | . . . . 5 Energy Gun 11 | . 18 14 11 8 Energy Cannon 6 | . . 1 11 6 Ballistic Gun 5 | . 7 16 2 4 Launcher 5 | . . . 9 5 Naked Turns . | . . . . . Heaviest Build 71 | 14 15 59 61 71 Greatest Support 40 | 40 40 30 30 38 Greatest Overweight (x) 15 | . 3 1 2 15 Average Overweight (x) 1 | . . . 1 1 Largest Inventory Capacity 20 | 8 8 20 20 20 Average Capacity 16 | 7 8 11 20 20 Most Carried 16 | 7 8 11 12 16 Average Carried 9 | 5 5 6 11 11 Final Capacity 20 | 8 8 20 20 20 Final Carried 12 | 6 5 10 12 5 Class Distribution -------------------- 36% | Gunner 35% | Skirmisher 22% | Mutant 4% | Scavenger-Gunner Dominant Class ---------------- Mutant | -10/Materials Gunner | -9/Materials Skirmisher | -9/Mines Gunner | -8/Materials Resources | -11 -10 -9 -9 -8 ----------- Run | Yrd Mat Mat Min Mat Matter Collected 1077 | 222 235 81 76 463 Remotely . | . . . . . Salvage Created 1222 | . 286 92 71 773 Parts 79 | . 22 4 3 50 Haulers Intercepted . | . . . . . Recyclers Shooed 1 | . 1 . . . Parts Field Recycled . | . . . . . Retrieved Matter . | . . . . . Parts Self-Destructed . | . . . . . Prevented . | . . . . . Kills | -11 -10 -9 -9 -8 ------- Run | Yrd Mat Mat Min Mat Combat Hostiles Destroyed 31 | . 8 2 3 18 Guns 20 | . 8 2 1 9 Cannons 3 | . . . . 3 AOE 8 | . . . 2 6 Classes Destroyed 7 | . 4 . . 3 Worker 3 | . 1 . . 2 Builder 6 | . . . . 6 Watcher 1 | . 1 . . . Swarmer 5 | . 3 . . 2 Grunt 25 | . 5 2 3 15 Sentry 1 | . . . . 1 Hunter 1 | . . . . 1 Best Kill Streak 7 | . 4 1 3 7 Combat Bots Only 4 | . 3 1 3 4 Max Kills in Single Turn 2 | . 1 1 2 2 Gunslinging . | . . . . . Exploded 2 | . . . 1 2 Melee . | . . . . . Uniques/NPCs Destroyed . | . . . . . Combat | -11 -10 -9 -9 -8 -------- Run | Yrd Mat Mat Min Mat Hostile Shots Fired 297 | . 78 3 7 209 Missed 79 | . 26 1 . 52 Damage Taken 3013 | . 596 23 88 2306 Core 739 | . 149 12 14 564 Absorbed by Shields . | . . . . . Core Remaining (%) 77 | 100 40 . 93 . Volleys Fired 106 | 1 36 5 7 57 Largest 3 | 2 2 3 3 3 Hottest 193 | 70 90 80 161 193 Shots Fired 258 | 2 66 15 21 154 Gun 210 | 2 66 15 7 120 Cannon 26 | . . . 7 19 Launcher 22 | . . . 7 15 Special . | . . . . . Kinetic 100 | 1 20 10 . 69 Thermal 110 | 1 46 5 7 51 Explosive 22 | . . . 7 15 Electromagnetic 26 | . . . 7 19 Robot Hit Streak 11 | . 5 7 5 11 Robot Miss Streak 5 | . 5 1 4 5 Penetration Max . | . . . . . Secondary Targets 2 | . 1 . . 1 Max Gunslinging Chain 1 | . 1 . . 1 Shots Hit Robots 144 | . 38 9 9 88 Core Hits 103 | . 17 4 9 73 Critical Kills . | . . . . . Critical Parts Destroyed . | . . . . . Critical Strikes 2 | . 1 . . 1 Burn 1 | . 1 . . . Corrupt 1 | . . . . 1 Melee Attacks . | . . . . . Impact . | . . . . . Slashing . | . . . . . Piercing . | . . . . . Sneak Attacks . | . . . . . Combat Hostiles . | . . . . . Follow-up Attacks . | . . . . . Damage Inflicted 3340 | . 476 95 358 2411 Guns 1569 | . 476 95 37 961 Cannons 366 | . . . 75 291 Explosions 1331 | . . . 246 1085 Melee . | . . . . . Ramming 74 | . . . . 74 Kinetic 700 | . 140 53 . 507 Thermal 869 | . 336 42 37 454 Explosive 1331 | . . . 246 1085 Electromagnetic 366 | . . . 75 291 Impact . | . . . . . Slashing . | . . . . . Piercing . | . . . . . Highest Corruption 1 | . . . . 1 Average Corruption 1 | . . . . 1 Corruption Purged . | . . . . . Corruption Blocked . | . . . . . Overload Shots . | . . . . . Overflow Damage 38 | . . . . 38 Projectiles . | . . . . . Explosions 38 | . . . . 38 Melee . | . . . . . Knockbacks . | . . . . . Impact . | . . . . . Kinetic . | . . . . . Secondary . | . . . . . Self-Inflicted Damage 172 | . . . . 172 Shots 4 | . . . . 4 Rammed 4 | . . . . 4 Targets Rammed 6 | . . . . 6 Kicked 2 | . . . . 2 Crushed . | . . . . . Highest Temperature 466 | 9 204 36 372 466 Average Temperature 120 | 6 62 19 150 152 Received Heat Transfer 1362 | . 303 12 48 999 Effects 12 | . . . . 12 Shutdowns 4 | . . . . 4 Energy Bleed 1 | . . . . 1 Interference 3 | . . . . 3 Short Circuit 1 | . . . . 1 Damage (major) 3 | . . . . 3 Siege Activations . | . . . . . Robots Corrupted . | . . . . . Combat Hostiles . | . . . . . Parts Fried . | . . . . . Impact Corruptions . | . . . . . Robots Melted . | . . . . . Combat Hostiles . | . . . . . Parts Melted 3 | . 1 . . 2 Heat Transferred 1948 | . 990 100 45 813 Parts Sabotaged . | . . . . . Parts Stolen . | . . . . . Parts Stripped . | . . . . . Power Chain Reactions . | . . . . . Alert | -11 -10 -9 -9 -8 ------- Run | Yrd Mat Mat Min Mat Peak Influence 298 | . 232 132 119 298 Initial 97 | . . 97 11 . Average 100 | . 126 63 26 185 Maximum Alert Level 1 | . 1 . . 1 Low Security (%) 80 | 100 85 100 100 54 Level 1 19 | . 14 . . 45 Level 2 . | . . . . . Level 3 . | . . . . . Level 4 . | . . . . . Level 5 . | . . . . . High Security . | . . . . . Max Security . | . . . . . Squads Dispatched 8 | . 1 3 . 4 Investigation 4 | . . 2 . 2 Extermination . | . . . . . Reinforcement 4 | . 1 1 . 2 Assault . | . . . . . Garrison . | . . . . . Intercept . | . . . . . Searches Triggered . | . . . . . Construction Impeded 2 | . . . . 2 Haulers Reinforced . | . . . . . Active Scanning Responses . | . . . . . Cargo Convoy Interrupts . | . . . . . Stealth | -11 -10 -9 -9 -8 --------- Run | Yrd Mat Mat Min Mat Distress Signals 3 | . 2 . . 1 Communications Jammed . | . . . . . Distress Signals . | . . . . . Times Spotted 53 | . 12 2 3 36 Peak Tracking Total 8 | . 5 1 3 8 Tactical Retreats 2 | . 1 . . 1 Traps | -11 -10 -9 -9 -8 ------- Run | Yrd Mat Mat Min Mat Traps Triggered 1 | . . 1 . . Indirectly . | . . . . . Trap Hack Attempts . | . . . . . Triggered . | . . . . . Disarmed . | . . . . . Reprogrammed . | . . . . . Reused . | . . . . . Traps Extracted . | . . . . . Installed . | . . . . . Triggered . | . . . . . Machines | -11 -10 -9 -9 -8 ---------- Run | Yrd Mat Mat Min Mat Machines Disabled 2 | . . . . 2 Max in Single Turn 1 | . . . . 1 Machines Repaired . | . . . . . Machines Dismantled . | . . . . . Machines Sabotaged . | . . . . . Overloaded Fab Kills . | . . . . . Hacking | -11 -10 -9 -9 -8 --------- Run | Yrd Mat Mat Min Mat Machines Accessed 4 | . . 1 . 3 Terminals 4 | . . 1 . 3 Fabricators . | . . . . . Repair Stations . | . . . . . Recycling Units . | . . . . . Scanalyzers . | . . . . . Garrison Access . | . . . . . Total Hacks 17 | . . 6 . 11 Successful 8 | . . 3 . 5 Failed 9 | . . 3 . 6 Catastrophic 2 | . . . . 2 Database Lockouts . | . . . . . Manual 5 | . . 1 . 4 Terminals 17 | . . 6 . 11 Fabricators . | . . . . . Repair Stations . | . . . . . Recycling Units . | . . . . . Scanalyzers . | . . . . . Garrison Access . | . . . . . Terminal Hacks 8 | . . 3 . 5 Record 1 | . . . . 1 Prototype ID Bank 1 | . . . . 1 Branch Access Points 1 | . . . . 1 Emergency Access Points 1 | . . . . 1 Alert Level 2 | . . 2 . . Unreport Threat 1 | . . 1 . . Surveillance Status 1 | . . . . 1 Fabricator Hacks . | . . . . . Repair Station Hacks . | . . . . . Recycling Unit Hacks . | . . . . . Scanalyzer . | . . . . . Garrison Access Hacks . | . . . . . Unauthorized Hacks . | . . . . . Terminals . | . . . . . Fabricators . | . . . . . Repair Stations . | . . . . . Recycling Units . | . . . . . Scanalyzers . | . . . . . Garrison Access . | . . . . . Data Cores Recovered . | . . . . . Used . | . . . . . Hacking Detections 4 | . . 1 . 3 Full Trace Events 4 | . . 1 . 3 Feedback Events . | . . . . . Feedback Blocked . | . . . . . Robot Schematics Acquired . | . . . . . Robots Built . | . . . . . Authchips . | . . . . . Time . | . . . . . Total Robot Build Rating . | . . . . . Part Schematics Acquired . | . . . . . Parts Built . | . . . . . Authchips . | . . . . . Time . | . . . . . Total Part Build Rating . | . . . . . Parts Repaired . | . . . . . Time . | . . . . . Parts Recycled . | . . . . . Recycled Matter . | . . . . . Retrieved Matter . | . . . . . Retrieved Components . | . . . . . Parts Scanalyzed . | . . . . . Part Schematics Acquired . | . . . . . Parts Damaged . | . . . . . Bothacking | -11 -10 -9 -9 -8 ------------ Run | Yrd Mat Mat Min Mat Used RIF Installer . | . . . . . Robots Hacked . | . . . . . Non-combat . | . . . . . Combat . | . . . . . Robot Hacks Applied . | . . . . . Relay Couplers Released . | . . . . . Fabnet Peak Effective % . | . . . . . Robots Rewired . | . . . . . Allies Hacked . | . . . . . Hacks Repelled . | . . . . . Allies | -11 -10 -9 -9 -8 -------- Run | Yrd Mat Mat Min Mat Total Allies 3 | . . . 3 . Largest Group 3 | . . . 3 3 Highest-Rated Group 40 | . . . 40 40 Highest-Rated Ally 16 | . . . 16 16 Total Orders . | . . . . . Ally Attacks 54 | . . . . 54 Total Damage 562 | . . . . 562 Kills 4 | . . . . 4 Allies Corrupted . | . . . . . Allies Melted . | . . . . . Intel | -11 -10 -9 -9 -8 ------- Run | Yrd Mat Mat Min Mat Robot Analysis Total . | . . . . . Derelict Logs Recovered . | . . . . . Drone Launches . | . . . . . Drone Recoveries . | . . . . . Exploration | -11 -10 -9 -9 -8 ------------- Run | Yrd Mat Mat Min Mat Turns Passed 2527 | 189 259 336 771 972 Spaces Moved 1107 | 126 95 215 307 364 Core 37 | 34 . . . 3 Treads 121 | 87 34 . . . Legs 769 | 4 57 215 307 186 Wheels 177 | 1 1 . . 175 Hover . | . . . . . Flight 3 | . 3 . . . Fastest Speed 50 | 50 95 120 190 105 Average Speed 187 | 128 139 134 243 204 Slowest Speed 800 | 160 300 190 260 800 Overloaded Moves . | . . . . . Propulsion Burnouts . | . . . . . Robots Hopped . | . . . . . Cave-ins Triggered . | . . . . . Exploration Rate (%) 21 | 8 17 17 43 21 Regions Visited 4 Branch Regions 1 Pre-discovered Areas . | . . . . . Known Exits Taken . | . . . . . Unknown Exits Taken 4 | 1 1 1 1 . Scrap Searched 1 | . . . 1 . Spaces Dug 37 | . . . 37 . Terrain Destroyed 176 | . . . 77 99 Melee . | . . . . . Projectile 1 | . . . . 1 AOE 175 | . . . 77 98 Terrain Rammed . | . . . . . Walls Destroyed . | . . . . . Machines Disabled . | . . . . . Actions | -11 -10 -9 -9 -8 --------- Run | Yrd Mat Mat Min Mat Total 1350 | 150 159 251 316 474 Wait 16 | 4 . 12 . . Move 1103 | 125 94 214 306 364 Hop . | . . . . . Pick Up 37 | 9 7 8 2 11 Fast Attach 4 | 4 . . . . Attach 46 | 4 11 6 . 25 Detach 15 | 1 4 3 . 7 Swap 11 | 1 2 3 1 4 Drop 6 | 1 5 . . . Fire 106 | 1 36 5 7 57 Melee . | . . . . . Ram 4 | . . . . 4 Kick 2 | . . . . 2 Crush . | . . . . . Escape Stasis . | . . . . . Rewire . | . . . . . Trap . | . . . . . Miscellaneous . | . . . . . Route ------- -11/Scrapyard -10/Materials -9/Materials -9/Mines -8/Materials History --------- Turn | Location | Event 7 | -11/Scrapyard | Discovered new exit (range 15) 190 | -11/Scrapyard | Entered Materials 327 | -10/Materials | Build established: Mutant 410 | -10/Materials | Core integrity fell below 50% 443 | -10/Materials | Discovered new exit (range 3) 449 | -10/Materials | Entered another Materials area 449 | -9/Materials | Evolved 2 slots: Propulsion x1, Weapon x1 664 | -9/Materials | Discovered new exit (range 16) 785 | -9/Materials | Entered Mines 912 | -9/Mines | Received a Rocket Launcher from a helpful Derelict 984 | -9/Mines | Build established: Skirmisher 1499 | -9/Mines | Discovered new exit (range 12) 1541 | -9/Mines | Assisted by bots powering up and referring to "LRC-V3" 1542 | -9/Mines | Assembled infested the area 1547 | -9/Mines | Assisted by a Guerilla fighting off Assembled 1556 | -9/Mines | Entered Materials 1556 | -8/Materials | Accompanied by 3 allies 1556 | -8/Materials | Evolved 2 slots: Power x1, Utility x1 1881 | -8/Materials | Build established: Gunner 2286 | -8/Materials | Lost 8 parts (1p1n1u5w) 2475 | -8/Materials | Core integrity fell below 50% 2511 | -8/Materials | Core integrity fell below 20% 2528 | -8/Materials | Destroyed by G-47 Trooper with Particle Gun Last Messages --------------- Overheating: Short circuit. K-01 Serf collects debris. Wheel destroyed. Gauss Rifle destroyed. K-01 Serf collects debris. R-06 Scavenger collects Lgt. Nuclear Core. Lgt. Ion Engine destroyed. S-10 Pest destroyed. R-06 Scavenger destroyed. K-01 Serf collects debris. Lgt. Assault Rifle destroyed. K-01 Serf collects debris. Overheating: Energy bleed (-42). Sml. Laser destroyed. K-01 Serf collects debris. Slammed into W-25 Informer. Destabilizing: System corrupted (+1). K-01 Serf collects debris. Ion Engine destroyed. K-01 Serf collects debris. Map ----- +----------------------------------------------------+ | ?????????????????????????????????????????????????? | | ?????????????????????????????????????????????????? | | ?????????????????????????????????????????????????? | | ?????????????????????????????????????????????????? | | ?????????????????????????????????????????????????? | | ?????????????????????????????????????????????????? | | ?????????????????????????????????????????????????? | | ?????????????????????????????????????????????????? | | ?????????????????????????????????????????????????? | | ?????????????????????????????????????????????????? | | ?????????????????????????????????????????????????? | | ?????????????????????????????????????????????????? | | ?????????????????????????????????????????????????? | | ?????????????????????????????????????????????????? | | ?????????????????????????????????????????????????? | | ?????????????????????????????????????????????????? | | ?????????????????????????????????????????????????? | | ?????????????# ??????????????????????????????????? | | ??????????????? ???????????######???????????????? | | ???????##########+########## #### #????????? | | ????? = =%%" #????????? | | ????? *!%Yk %! =* +????????? | | ????? [ % *%=%Y %= * #????????? | | ??????????????##########g### ####????????????? | | ????????????????????# sgs#???+###???????????????? | | ????????????????????# @#??????????????????????? | | ????????????????????# """ #??????????????????????? | | ????????????????????# """ #??????????????????????? | | ????????????????????# """ #??????????????????????? | | ????????????????????# #??????????????????????? | | ????????????????????# ! #??????????????????????? | | ????????????????????# #??????????????????????? | | ??????????########### [! #??????????????????????? | | ??????????# # [! ###########????????????? | | ??????????# """ # [ # #????????????? | | ??????????# "" """ # # ####?????????? | | ??????????# "" """ ###w### + #?????????? | | ??????????# "T """ #?# #?# ## #?????????? | | ??????????# "" """ #?# #?# ## #?????????? | | ??????????# "" #?# #?# !! ## #?????????? | | ??????????# #?# #?# !! ## #?????????? | | ??????????######+####?# #?# ## #?###?????? | | ?????????????# #??# #?#####+###### # ##????? | | ?????????????# #### #???## #####+#######???? | | ?????????????# #???## # #???? | | ?????????????# ######???## # " ##??? | | ?????????????# # ??????## + ""T"" +???? | | ?????????####### ### ####### # """"" #???? | | ?????????# # ## # #=%= #???? | | ?????????# + # # ##########+##???? | +----------------------------------------------------+ Best States ------------- Heat Dissipation 45 Energy Generation 25 Energy Capacity 430 Matter Stores 318 Matter Capacity 450 Sight Range 20 Terrain Scan Range 16 Terrain Scan Density 10 Evasion (%) 55 Recoil Reduction 2 Defensive Hacking 10 Item Schematics ----------------- None Robot Schematics ------------------ None Fabricated ------------ Nothing Alien Tech Used ----------------- None Achievements -------------- Backstab Challenges ------------ None Game ------ Seed SystemSwarmThermoblaster Manual? 0 Play Time 00:35:05 Cumulative 2.2 hours Start 2024.06.26 @ 17:13:35 End 2024.06.26 @ 17:48:30 Sessions 1 Manual Loads 0 Difficulty Rogue Special Mode None Game No. 5 Rogue 5 Adventurer 0 Explorer 0 Win Type - Total 0 Types 0/0/0/0/0/0/0/0/0 Lore% 1 Gallery% 5 Achievement% 5 Wizard Run 0 Options --------- Layout 1 ASCII 0 Keyboard 0 Movement Mouse Keybinds 0 Fullscreen 1 Font 24/Smallcaps Map View 50x35 Zoom Use 0% Tactical HUD 0 Map Filters NONE Filters NONE Steam 1 RUN: fc66998f-3b4f-4ad4-acf0-43725c0093c0